bitfinex/quotes_SOLUSD_20241123
["timestamp","ask_amount","ask_price","bid_price","bid_amount"]
[1732335102882,7.54336799,258.0,257.98,0.09367462]
[1732335103085,18.6713865,258.01,257.98,0.09367462]
[1732335103786,18.6713865,257.99,257.83,23.776884]
[1732335104208,20.0,257.98,257.83,23.776884]
[1732335104820,7.81423181,258.08,257.85,23.776884]
[1732335105001,18.6713865,258.04,257.85,23.776884]
[1732335105209,2.5,258.11,257.85,23.776884]
[1732335105210,18.6713865,258.02,257.85,23.776884]
[1732335106082,20.0,258.01,257.85,23.776884]
[1732335107289,20.0,258.01,257.86,0.58147438]
[1732335107506,20.0,258.01,257.87,23.776884]
[1732335107883,38.6713865,258.04,257.87,23.776884]
[1732335108206,18.6713865,258.02,257.89,23.776884]
[1732335108410,20.0,258.01,257.89,23.776884]
[1732335108997,20.0,257.99,257.89,23.776884]
[1732335110010,20.0,257.99,257.84,21.84428436]
[1732335110011,18.6713865,257.95,257.84,21.2628]
[1732335110191,20.0,257.94,257.84,21.2628]
[1732335110385,20.0,257.92,257.84,21.2628]
[1732335111085,20.0,257.94,257.84,21.2628]
[1732335111403,18.6713865,257.95,257.84,21.2628]
[1732335111404,18.6713865,257.95,257.84,6.0071]
[1732335111582,20.0,257.94,257.84,6.0071]
[1732335111986,18.6713865,258.03,257.85,0.58160055]
[1732335112296,18.6713865,258.03,257.87,15.2557]
[1732335112610,18.6713865,258.03,257.89,23.776884]
[1732335113586,18.6713865,258.03,257.88,23.776884]
[1732335113781,20.0,258.02,257.88,24.35836442]
[1732335114090,20.0,258.04,257.88,24.35836442]
[1732335115109,18.6713865,258.05,257.88,24.35836442]
[1732335115413,21.7082,258.19,257.93,2.5]
[1732335115597,18.6713865,258.12,257.93,2.5]
[1732335115993,18.6713865,258.1,257.93,0.58116472]
[1732335116631,20.0,258.09,257.93,0.58116472]
[1732335117013,14.09,258.24,257.93,0.58116472]
[1732335117014,7.84862428,258.25,257.96,15.7702]
[1732335117211,18.6713865,258.18,257.98,8.5315]
[1732335117410,18.6713865,258.16,258.0,0.09367462]
[1732335117636,18.6713865,258.18,258.0,0.09367462]
[1732335118341,18.6713865,258.18,258.02,0.09367462]
[1732335118933,20.0,258.17,258.02,0.09367462]
[1732335119114,20.0,258.17,258.04,0.09367462]
[1732335120244,20.0,258.11,258.04,0.09367462]
[1732335121456,7.66959755,258.18,258.04,0.09367462]
[1732335121457,20.0,258.14,258.04,0.09367462]
[1732335121664,20.0,258.16,258.04,0.09367462]
[1732335123262,20.0,258.16,258.05,0.09367462]
[1732335123432,20.0,258.25,258.07,0.09367462]
[1732335123759,18.6713865,258.2,258.07,0.09367462]
[1732335125139,20.0,258.19,258.08,0.09367462]
[1732335127383,20.0,258.17,258.08,0.09367462]
[1732335127961,18.6713865,258.16,258.08,0.09367462]
[1732335128138,20.0,258.15,258.08,0.09367462]
[1732335128339,10.0,258.15,258.08,0.09367462]
[1732335129055,18.6713865,258.14,258.08,0.09367462]
[1732335130567,20.0,258.13,258.08,0.09367462]
[1732335131941,18.6713865,258.1,258.08,0.09367462]
[1732335132141,20.0,258.09,258.08,0.09367462]
[1732335138175,20.0,258.09,257.98,23.776884]
[1732335139547,20.0,258.11,257.98,23.776884]
[1732335141745,18.6713865,258.14,257.98,23.776884]
[1732335141947,18.6713865,258.14,257.99,0.58123255]
[1732335142566,18.6713865,258.14,258.0,23.776884]
[1732335143068,20.0,258.13,257.99,6.0528]
[1732335143249,18.6713865,258.18,258.01,23.776884]
[1732335143649,18.6713865,258.16,258.01,23.776884]
[1732335144463,18.6713865,258.16,258.0,23.776884]
[1732335144652,31.66044643,258.15,258.0,23.776884]
[1732335145972,31.66044643,258.15,258.01,0.58117249]
[1732335146174,31.66044643,258.15,258.0,23.776884]
[1732335146555,31.66044643,258.15,258.0,24.35806927]
[1732335147460,20.0,258.16,258.0,24.35806927]
[1732335149975,20.0,258.18,258.0,24.35806927]
[1732335150358,11.66044643,258.21,258.01,27.02442164]
[1732335150584,7.59618072,258.19,258.06,23.776884]
[1732335150766,7.59618072,258.19,258.1,0.09367462]
[1732335150960,7.59618072,258.19,258.13,0.09367462]
[1732335151361,11.66044643,258.26,258.13,0.09367462]
[1732335151568,11.66044643,258.24,258.13,0.09367462]
[1732335151874,20.0,258.23,258.13,0.09367462]
[1732335152274,27.52952974,258.31,258.13,0.09367462]
[1732335152482,27.52952974,258.31,258.14,0.09367462]
[1732335152483,19.71267785,258.31,258.14,0.09367462]
[1732335152789,11.66044643,258.28,258.15,0.09367462]
[1732335153607,20.0,258.27,258.18,0.09367462]
[1732335153781,11.66044643,258.28,258.18,0.09367462]
[1732335154087,7.74305013,258.31,258.18,26.37055862]
[1732335154273,27.43408861,258.32,258.2,0.09367462]
[1732335154470,35.22495439,258.32,258.2,0.09367462]
[1732335154787,27.43408861,258.32,258.2,0.09367462]
[1732335155283,27.43408861,258.32,258.22,0.09367462]
[1732335155490,20.0,258.31,258.23,0.09367462]
[1732335157493,11.66044643,258.3,258.23,0.09367462]
[1732335157675,20.0,258.29,258.22,22.776884]
[1732335157871,20.0,258.29,258.21,6.14647462]
[1732335158191,11.66044643,258.26,258.21,0.09367462]
[1732335158481,20.0,258.25,258.21,0.09367462]
[1732335158891,20.0,258.27,258.21,0.09367462]
[1732335160381,20.0,258.23,258.21,0.09367462]
[1732335161184,20.0,258.27,258.21,0.09367462]
[1732335162190,20.0,258.31,258.21,0.09367462]
[1732335162398,11.66044643,258.3,258.21,0.09367462]
[1732335162685,20.0,258.29,258.21,0.09367462]
[1732335162986,20.0,258.3,258.21,0.09367462]
[1732335163187,20.0,258.28,258.21,0.09367462]
[1732335165793,20.0,258.24,258.21,0.09367462]
[1732335166293,20.0,258.26,258.21,0.09367462]
[1732335166871,20.0,258.3,258.21,0.09367462]
[1732335169793,34.97507907,258.32,258.21,0.09367462]
[1732335171172,20.0,258.31,258.21,0.09367462]
[1732335178296,27.43408861,258.32,258.21,0.09367462]
[1732335179392,39.09453504,258.32,258.21,0.09367462]
[1732335179596,20.0,258.31,258.21,0.09367462]
[1732335185804,39.09453504,258.32,258.21,0.09367462]
[1732335185805,11.66044643,258.26,258.21,0.09367462]
[1732335186111,20.0,258.21,258.05,16.3887]
[1732335186305,20.0,258.17,258.05,16.3887]
[1732335186902,20.0,258.18,258.05,16.3887]
[1732335187201,20.0,258.2,258.05,16.3887]
[1732335187592,20.0,258.28,258.06,24.35798517]
[1732335187792,20.0,258.23,258.06,24.35798517]
[1732335188198,7.45994618,258.3,258.07,16.3887]
[1732335188390,7.45994618,258.3,258.08,0.58085518]
[1732335188700,11.6469978,258.29,258.08,0.58085518]
[1732335189091,11.6469978,258.29,258.09,6.2426]
[1732335189279,11.6469978,258.29,258.1,0.58090348]
[1732335189486,11.6469978,258.27,258.1,0.58090348]
[1732335190008,20.0,258.26,258.1,0.58090348]
[1732335190702,20.0,258.26,258.1,0.08090348]
[1732335190903,0.59367462,258.25,258.09,6.2426]
[1732335191081,0.59367462,258.25,258.1,0.58095952]
[1732335192206,11.6469978,258.23,258.1,0.58095952]
[1732335192503,16.6469978,258.31,258.07,16.3887]
[1732335192504,20.0,258.16,258.07,16.3887]
[1732335192706,0.59367462,258.15,258.07,16.3887]
[1732335192882,20.0,258.16,258.07,16.3887]
[1732335193091,19.20786681,258.31,258.07,16.3887]
[1732335193092,0.59367462,258.2,258.07,16.3887]
[1732335193307,20.0,258.22,258.07,16.3887]
[1732335193308,0.59367462,258.21,258.07,16.3887]
[1732335193606,0.59367462,258.21,258.07,16.96970442]
[1732335194987,0.59367462,258.21,258.08,23.776884]
[1732335195898,19.20786681,258.31,258.08,23.776884]
[1732335195899,20.0,258.25,258.09,0.58100136]
[1732335196100,0.59367462,258.24,258.09,0.58100136]
[1732335196707,0.59367462,258.25,258.09,0.58100136]
[1732335197712,11.6469978,258.3,258.1,6.3456]
[1732335197897,0.59367462,258.29,258.11,0.58089181]
[1732335199291,20.59367462,258.29,258.11,0.58089181]
[1732335199688,20.59367462,258.29,258.12,15.5699]
[1732335200015,27.43408861,258.32,258.21,5.0]
[1732335200189,27.43408861,258.32,258.22,0.58056264]
[1732335202718,27.43408861,258.32,258.2,21.9155]
[1732335202719,20.0,258.31,258.2,21.9155]
[1732335203202,20.59367462,258.31,258.2,21.9155]
[1732335203908,20.0,258.29,258.2,15.5699]
[1732335204095,20.59367462,258.29,258.2,15.5699]
[1732335204296,20.0,258.29,258.2,15.5699]
[1732335204512,20.0,258.31,258.21,0.58078791]
[1732335206916,20.59367462,258.31,258.2,15.5699]
[1732335207800,20.59367462,258.31,258.21,0.58076135]
[1732335208310,20.0,258.31,258.23,6.3456]
[1732335208614,20.0,258.31,258.24,0.09367462]
[1732335208807,20.59367462,258.31,258.24,0.09367462]
[1732335213416,20.0,258.29,258.24,0.09367462]
[1732335213725,0.59367462,258.28,258.24,0.09367462]
[1732335214515,20.0,258.25,258.24,0.09367462]
[1732335214721,20.59367462,258.25,258.24,0.09367462]
[1732335216218,50.66845862,258.25,258.24,0.09367462]
[1732335216720,60.90290091,258.25,258.24,0.09367462]
[1732335217218,60.90290091,258.25,258.02,15.1946]
[1732335217219,2.5,258.23,258.02,15.1946]
[1732335217519,20.0,258.12,257.99,6.5369]
[1732335217727,0.59367462,258.11,257.99,6.5369]
[1732335218723,0.59367462,258.16,257.99,7.11812885]
[1732335219198,12.25020757,258.16,257.99,7.11812885]
[1732335219520,20.0,258.15,257.99,6.5369]
[1732335219695,0.59367462,258.14,257.99,6.5369]
[1732335219897,11.65653295,258.08,257.9,21.7315]
[1732335220104,20.59367462,258.07,257.9,21.7315]
[1732335220718,0.59367462,258.07,257.91,0.58140162]
[1732335221106,20.0,258.09,257.91,0.58140162]
[1732335221107,0.59367462,258.08,257.91,0.58140162]
[1732335221325,0.59367462,258.08,257.92,23.776884]
[1732335222299,12.25020757,258.08,257.92,23.776884]
[1732335222621,20.0,258.09,257.92,23.776884]
[1732335222622,20.59367462,258.09,257.93,0.58137499]
[1732335222800,0.59367462,258.08,257.93,0.58137499]
[1732335223194,0.59367462,258.12,257.93,0.58137499]
[1732335224103,20.0,258.14,257.93,0.58137499]
[1732335224324,0.59367462,258.13,257.93,3.08137499]
[1732335224516,0.59367462,258.16,257.93,3.08137499]
[1732335225302,0.59367462,258.16,257.93,7.98183913]
[1732335225523,20.59367462,258.17,257.93,7.98183913]
[1732335225903,11.65653295,258.16,257.93,7.98183913]
[1732335226105,20.59367462,258.15,257.94,23.776884]
[1732335226408,20.59367462,258.15,257.95,0.58121123]
[1732335226622,20.59367462,258.15,257.96,23.776884]
[1732335226804,20.59367462,258.15,257.94,23.776884]
[1732335226805,20.59367462,258.15,257.97,0.58121155]
[1732335227122,20.59367462,258.15,257.98,23.776884]
[1732335227425,20.59367462,258.15,257.99,0.58121186]
[1732335231127,20.59367462,258.15,257.98,23.776884]
[1732335234316,20.59367462,258.15,257.94,0.58124594]
[1732335234516,20.59367462,258.15,257.95,23.776884]
[1732335234717,20.59367462,258.15,257.96,0.58125535]
[1732335235038,11.65653295,258.14,257.96,0.58125535]
[1732335235329,20.59367462,258.13,257.96,0.58125535]
[1732335236232,0.59367462,258.13,257.96,0.58125535]
[1732335236537,0.59367462,258.14,257.96,0.58125535]
[1732335238438,20.0,258.09,257.92,0.58127021]
[1732335238639,0.59367462,258.08,257.92,0.58127021]
[1732335239126,0.59367462,258.11,257.92,0.58127021]
[1732335239540,0.59367462,258.11,257.93,0.58127044]
[1732335240013,0.59367462,258.11,257.94,23.776884]
[1732335240218,0.59367462,258.12,257.95,0.58125404]
[1732335240619,0.59367462,258.12,257.96,23.776884]
[1732335240814,0.59367462,258.12,257.97,0.58126302]
[1732335241815,0.59367462,258.12,257.96,23.776884]
[1732335242217,20.0,258.11,257.93,23.776884]
[1732335242541,20.0,258.11,257.9,21.7315]
[1732335242542,20.0,258.09,257.94,0.58133097]
[1732335242722,0.59367462,258.08,257.91,0.58133997]
[1732335243516,20.0,258.06,257.92,23.776884]
[1732335243830,20.59367462,258.06,257.93,0.58134925]
[1732335246250,20.59367462,258.06,257.94,23.776884]
[1732335246620,20.59367462,258.06,257.93,0.58134376]
[1732335247237,20.59367462,258.06,257.91,23.776884]
[1732335247627,20.0,258.02,257.86,0.58138024]
[1732335247940,20.0,258.0,257.86,0.58138024]
[1732335248149,0.59367462,257.99,257.82,1.9393]
[1732335248342,0.59367462,257.99,257.83,0.58154085]
[1732335248523,20.0,257.95,257.82,1.9393]
[1732335248723,0.59367462,257.94,257.82,1.9393]
[1732335249719,7.46234511,257.87,257.82,1.9393]
[1732335249915,7.46234511,257.87,257.68,15.67]
[1732335249916,20.0,257.84,257.68,16.25179224]
[1732335250116,0.59367462,257.83,257.68,16.25179224]
[1732335250332,8.05601973,257.83,257.68,0.58179224]
[1732335250542,20.0,257.82,257.63,0.58191826]
[1732335250743,0.59367462,257.81,257.63,5.58191826]
[1732335251046,20.59367462,257.84,257.63,5.58191826]
[1732335251419,20.59367462,257.84,257.63,3.08191826]
[1732335251936,20.59367462,257.84,257.63,0.58191826]
[1732335252129,20.59367462,257.84,257.64,0.5818813]
[1732335252325,11.6899744,257.82,257.64,0.5818813]
[1732335252633,20.59367462,257.81,257.68,0.09367462]
[1732335252824,20.59367462,257.81,257.8,0.09367462]
[1732335253221,20.59367462,257.81,257.79,0.09367462]
[1732335253222,26.67477462,257.81,257.79,0.09367462]
[1732335253416,11.6899744,257.8,257.79,0.09367462]
[1732335253620,20.0,257.79,257.57,0.58203408]
[1732335253922,20.0,257.71,257.52,4.95646414]
[1732335254121,5.6909,257.77,257.52,4.95646414]
[1732335254122,5.6909,257.77,257.55,2.5]
[1732335254326,20.0,257.76,257.57,2.5]
[1732335254523,15.6982,257.83,257.62,2.5]
[1732335254735,16.29187462,257.83,257.63,0.58188256]
[1732335254925,15.6982,257.83,257.64,6.1465]
[1732335255129,16.29187462,257.83,257.66,23.776884]
[1732335255332,16.29187462,257.83,257.68,23.776884]
[1732335255838,0.59367462,257.8,257.68,23.776884]
[1732335256143,0.59367462,257.82,257.68,23.776884]
[1732335256337,0.59367462,257.82,257.67,0.581854]
[1732335256338,0.59367462,257.82,257.67,0.58189509]
[1732335256543,0.59367462,257.82,257.68,23.776884]
[1732335256749,16.29187462,257.83,257.69,0.58188158]
[1732335257046,6.5939,257.88,257.7,23.776884]
[1732335257354,22.2027,258.03,257.78,2.5]
[1732335257543,0.59367462,258.02,257.9,0.09367462]
[1732335257725,0.59367462,258.02,258.01,0.09367462]
[1732335258442,12.28364902,258.02,258.01,0.09367462]
[1732335258748,12.28364902,258.02,257.99,0.09367462]
[1732335259045,20.0,258.0,257.99,0.09367462]
[1732335259231,20.59367462,258.0,257.99,0.09367462]
[1732335259941,22.2027,258.03,257.99,0.09367462]
[1732335260132,0.59367462,258.02,257.99,0.09367462]
[1732335260329,6.5939,258.03,257.99,0.09367462]
[1732335260542,0.59367462,258.05,257.99,0.09367462]
[1732335260846,11.6899744,258.06,257.99,0.09367462]
[1732335261053,11.6899744,258.04,257.99,0.09367462]
[1732335261225,11.6899744,258.02,257.99,0.09367462]
[1732335261425,0.59367462,258.01,257.99,0.09367462]
[1732335261627,0.59367462,258.01,257.79,16.5972]
[1732335261628,20.0,257.99,257.7,2.5]
[1732335261845,33.8926744,258.0,257.73,2.5]
[1732335261846,20.0,257.94,257.73,2.5]
[1732335262154,0.59367462,257.93,257.74,0.58161394]
[1732335262535,20.0,257.94,257.74,0.58161394]
[1732335262845,22.2027,258.0,257.77,2.5]
[1732335262846,0.59367462,257.99,257.77,2.5]
[1732335263038,0.59367462,257.99,257.78,0.58154912]
[1732335263039,20.59367462,257.99,257.78,0.58154912]
[1732335263240,22.2027,258.0,257.8,2.5]
[1732335263443,6.5939,258.0,257.82,23.776884]
[1732335263641,0.59367462,258.05,257.83,8.5454074]
[1732335263829,0.59367462,258.05,257.83,6.0454074]
[1732335264147,0.59367462,258.05,257.84,2.5]
[1732335264443,0.59367462,258.06,257.85,7.13510195]
[1732335265546,7.18757462,258.13,257.91,2.5]
[1732335265737,7.18757462,258.13,257.92,13.51050965]
[1732335265948,6.5939,258.13,257.94,5.0]
[1732335266196,6.5939,258.13,257.95,7.13483665]
[1732335266347,0.59367462,258.12,257.95,7.13483665]
[1732335267151,20.59367462,258.12,257.95,7.13483665]
[1732335268435,20.59367462,258.12,257.95,0.58114397]
[1732335268640,20.59367462,258.12,257.89,0.58130407]
[1732335269444,20.59367462,258.12,257.91,23.776884]
[1732335269746,20.59367462,258.12,257.92,0.58131212]
[1732335269953,20.59367462,258.12,257.93,23.776884]
[1732335270559,20.59367462,258.12,257.92,0.58130547]
[1732335271643,0.59367462,258.12,257.92,0.58130547]
[1732335271849,6.5939,258.13,257.94,5.0]
[1732335272151,6.5939,258.13,257.95,6.48483851]
[1732335272952,0.59367462,258.12,257.95,6.48483851]
[1732335273137,0.59367462,258.12,257.91,2.5]
[1732335273669,0.59367462,258.12,257.91,3.08123117]
[1732335273849,0.59367462,258.12,257.91,8.98492385]
[1732335274229,20.59367462,258.12,257.93,2.5]
[1732335274428,20.0,258.12,257.95,23.776884]
[1732335274633,20.0,258.12,257.96,0.58116882]
[1732335275239,20.0,258.17,257.96,0.58116882]
[1732335275429,12.28364902,258.16,257.96,0.58116882]
[1732335275646,20.0,258.15,257.96,0.58116882]
[1732335275849,0.59367462,258.14,257.96,0.58116882]
[1732335276563,34.5230744,258.12,257.94,5.90369268]
[1732335276869,20.59367462,258.11,257.91,0.58130296]
[1732335277565,20.59367462,258.11,257.91,6.48499564]
[1732335278442,20.59367462,258.11,257.92,23.776884]
[1732335278951,20.0,258.09,257.91,5.90369268]
[1732335279159,0.59367462,258.08,257.91,5.90369268]
[1732335279465,20.0,258.07,257.91,5.90369268]
[1732335279643,0.59367462,258.06,257.91,5.90369268]
[1732335280141,31.6899744,258.02,257.81,0.58144385]
[1732335280344,20.0,257.99,257.77,0.58151466]
[1732335280541,0.59367462,257.98,257.77,0.58151466]
[1732335280735,12.28364902,257.98,257.73,0.58164326]
[1732335280939,20.0,257.96,257.73,5.83416927]
[1732335281176,0.59367462,257.95,257.74,5.25252601]
[1732335281342,0.59367462,257.95,257.75,0.58164635]
[1732335281868,0.59367462,257.95,257.75,20.58164635]
[1732335282448,0.59367462,257.95,257.75,5.83417236]
[1732335283342,36.2264,257.94,257.75,5.83417236]
[1732335283663,36.2264,257.94,257.7,0.5817006]
[1732335283664,11.6899744,257.89,257.7,0.5817006]
[1732335283866,20.59367462,257.88,257.7,0.5817006]
[1732335284245,6.6067,257.87,257.7,0.5817006]
[1732335284442,20.59367462,257.86,257.69,0.58181585]
[1732335284842,11.6899744,257.84,257.69,0.58181585]
[1732335285052,20.0,257.79,257.63,5.25252601]
[1732335285249,20.59367462,257.79,257.63,5.25252601]
[1732335286569,20.59367462,257.79,257.64,23.776884]
[1732335286950,20.0,257.76,257.52,22.5]
[1732335287267,0.59367462,257.75,257.57,5.25252601]
[1732335287474,0.59367462,257.75,257.49,4.87317691]
[1732335287475,3.09367462,257.75,257.49,4.87317691]
[1732335287648,2.5,257.74,257.5,0.58206982]
[1732335287843,0.72759482,257.73,257.51,4.87317691]
[1732335288147,0.72759482,257.73,257.52,0.58207616]
[1732335288346,2.5,257.72,257.54,23.776884]
[1732335288553,2.5,257.72,257.55,0.58210333]
[1732335288858,5.0,257.68,257.53,4.87317691]
[1732335289063,9.1067,257.66,257.53,4.87317691]
[1732335289572,0.72780383,257.65,257.47,4.87317691]
[1732335289773,0.72780383,257.65,257.48,0.58225105]
[1732335289955,2.5,257.64,257.48,5.45542796]
[1732335290265,0.72784291,257.63,257.48,5.45542796]
[1732335291457,16.2264,257.69,257.49,28.65006091]
[1732335291678,6.6067,257.73,257.49,28.65006091]
[1732335291679,6.6067,257.73,257.5,0.58207022]
[1732335291971,6.6067,257.73,257.51,4.87317691]
[1732335292174,6.6067,257.73,257.52,0.58200469]
[1732335292471,6.6067,257.73,257.53,4.87317691]
[1732335292666,6.6067,257.73,257.54,20.58200832]
[1732335292874,0.72749312,257.72,257.55,4.87317691]
[1732335293061,0.72749312,257.72,257.55,24.87317691]
[1732335293264,2.5,257.69,257.55,24.87317691]
[1732335293468,2.5,257.69,257.55,4.87317691]
[1732335293867,5.0,257.71,257.56,0.58216241]
[1732335294055,0.72766879,257.7,257.56,0.58216241]
[1732335294255,0.72767326,257.72,257.56,0.58216241]
[1732335294462,3.22767326,257.72,257.56,0.58216241]
[1732335294853,2.5,257.7,257.56,0.58216241]
[1732335295054,0.72769289,257.69,257.56,0.58216241]
[1732335295254,2.5,257.68,257.56,0.58216241]
[1732335296079,2.5,257.68,257.55,4.87317691]
[1732335296258,3.22773481,257.68,257.55,4.87317691]
[1732335296460,3.22773481,257.68,257.5,0.58217656]
[1732335296461,2.5,257.67,257.5,0.58217656]
[1732335296675,2.5,257.67,257.49,4.87317691]
[1732335296676,0.72786026,257.66,257.49,4.87317691]
[1732335296872,2.5,257.64,257.5,0.58226196]
[1732335297175,2.5,257.62,257.49,4.87317691]
[1732335297475,3.22790262,257.62,257.49,4.87317691]
[1732335297672,6.0404,257.61,257.49,4.87317691]
[1732335298055,6.0404,257.61,257.5,0.58235193]
[1732335298751,6.0404,257.61,257.51,23.776884]
[1732335298955,6.0404,257.61,257.52,0.58222691]
[1732335300466,6.0404,257.61,257.52,20.58222691]
[1732335301856,15.5576,257.63,257.52,20.58222691]
[1732335302053,6.0404,257.67,257.53,24.87317691]
[1732335302265,6.0404,257.67,257.54,0.58212344]
[1732335302464,6.0404,257.67,257.54,20.58212344]
[1732335304175,6.0404,257.67,257.54,25.45530035]
[1732335304582,6.0404,257.67,257.55,4.87317691]
[1732335304770,6.0404,257.67,257.56,20.58212923]
[1732335305779,15.5576,257.69,257.58,20.0]
[1732335305975,15.5576,257.69,257.59,0.58200107]
[1732335306163,15.5576,257.69,257.59,5.45517798]
[1732335306360,6.0404,257.72,257.6,20.0]
[1732335306564,6.0404,257.72,257.61,0.58195269]
[1732335307374,15.5576,257.74,257.62,24.87317691]
[1732335307586,6.0404,257.79,257.63,0.58187212]
[1732335307783,21.598,257.88,257.65,22.9717]
[1732335308080,21.598,257.88,257.66,25.45480847]
[1732335308470,21.598,257.88,257.66,28.92952121]
[1732335308673,6.0404,257.88,257.68,20.0]
[1732335308867,6.0404,257.88,257.71,20.0]
[1732335309064,15.5576,257.94,257.71,20.0]
[1732335309065,15.5576,257.94,257.73,20.0]
[1732335309263,15.5576,257.94,257.74,5.45467896]
[1732335309463,15.5576,257.94,257.75,20.0]
[1732335309778,15.5576,257.94,257.76,5.45469394]
[1732335309977,15.5576,257.94,257.77,20.0]
[1732335310167,15.5576,257.94,257.78,5.45468928]
[1732335310365,15.5576,257.94,257.79,20.0]
[1732335310568,15.5576,257.94,257.8,0.58151546]
[1732335311294,16.28449883,257.94,257.8,0.58151546]
[1732335311460,15.5576,257.94,257.74,0.58159494]
[1732335311779,15.5576,257.94,257.78,20.0]
[1732335311976,2.5,257.93,257.79,0.58151613]
[1732335312161,16.28449516,257.94,257.79,0.58151613]
[1732335312370,15.5576,257.94,257.79,0.58151613]
[1732335313565,2.5,257.91,257.79,0.58151613]
[1732335313771,3.2270689,257.91,257.76,0.58165512]
[1732335313971,2.5,257.89,257.76,0.58165512]
[1732335314699,3.22712863,257.89,257.76,0.58165512]
[1732335314859,0.72712863,257.89,257.76,0.58165512]
[1732335315065,20.72713007,257.9,257.76,0.58165512]
[1732335315559,5.0,257.89,257.76,0.58165512]
[1732335315762,2.5,257.88,257.77,23.776884]
[1732335317063,2.5,257.84,257.69,20.0]
[1732335317267,5.72712414,257.87,257.7,0.58180495]
[1732335317466,20.0,257.88,257.71,4.87317691]
[1732335317686,22.5,257.88,257.72,20.58172089]
[1732335318186,20.0,257.88,257.72,5.4548978]
[1732335318705,3.22725619,257.89,257.73,20.0]
[1732335318887,5.72725619,257.89,257.74,0.58172267]
[1732335319071,0.72715357,257.93,257.74,0.58172267]
[1732335319265,2.5,257.92,257.75,24.87317691]
[1732335319470,2.5,257.92,257.76,20.58162658]
[1732335319673,15.5576,257.94,257.77,24.87317691]
[1732335319878,0.7270256,257.93,257.78,0.5816155]
[1732335320081,0.7270256,257.93,257.79,23.776884]
[1732335320374,2.5,257.92,257.8,0.58161772]
[1732335320564,0.7270256,257.93,257.8,0.58161772]
[1732335320766,2.5,257.92,257.8,0.58161772]
[1732335321182,2.5,257.92,257.81,23.776884]
[1732335321570,0.7270256,257.93,257.81,23.776884]
[1732335321771,2.5,257.92,257.81,23.776884]
[1732335322192,16.28460499,257.94,257.81,23.776884]
[1732335322379,15.5576,257.94,257.83,23.776884]
[1732335322577,6.0404,257.95,257.84,0.5815576]
[1732335323094,6.0404,257.95,257.85,23.776884]
[1732335323387,6.0404,257.95,257.86,0.58148691]
[1732335323894,0.72685864,258.0,257.86,0.58148691]
[1732335324284,2.5,257.99,257.86,0.58148691]
[1732335324677,3.22686505,257.99,257.86,0.58148691]
[1732335324877,0.72686505,257.99,257.86,0.58148691]
[1732335325077,2.5,257.99,257.86,0.58148691]
[1732335325384,3.22684435,258.0,257.86,0.58148691]
[1732335325586,0.72684435,258.0,257.86,0.58148691]
[1732335325985,3.22684435,258.0,257.86,0.58148691]
[1732335326597,2.5,257.99,257.87,23.776884]
[1732335326888,3.22683658,257.99,257.87,23.776884]
[1732335327094,2.5,257.99,257.87,23.776884]
[1732335327689,2.5,257.99,257.88,0.5814709]
[1732335327893,2.5,258.01,257.88,0.5814709]
[1732335328199,2.5,258.01,257.88,5.45464781]
[1732335328979,2.5,258.01,257.89,23.776884]
[1732335329179,2.5,258.01,257.91,23.776884]
[1732335329586,2.5,258.01,257.92,20.0]
[1732335329788,2.5,258.01,257.93,23.776884]
[1732335329988,2.5,258.01,257.94,20.0]
[1732335333780,2.5,257.98,257.95,23.776884]
[1732335335202,2.5,258.0,257.95,23.776884]
[1732335335406,3.2268441,258.0,257.95,23.776884]
[1732335335600,2.5,258.01,257.95,23.776884]
[1732335338883,0.72683825,258.07,257.96,20.0]
[1732335339095,5.0,258.1,257.96,25.73511152]
[1732335339785,2.5,258.13,257.96,25.73511152]
[1732335340077,9.54123759,258.14,257.96,25.73511152]
[1732335340280,8.8147,258.14,257.96,25.73511152]
[1732335341609,11.3147,258.14,257.96,25.73511152]
[1732335341905,11.3147,258.14,257.97,23.776884]
[1732335342201,11.3147,258.14,257.98,5.73486853]
[1732335342406,8.8147,258.14,257.99,20.0]
[1732335342583,8.8147,258.14,258.0,5.73487071]
[1732335343181,5.0,258.18,258.03,0.09367462]
[1732335343400,7.04110212,258.2,258.06,23.776884]